fUST/lending_fUST_20240728
["ID","MTS","AMOUNT","RATE_DAILY","PERIOD"]
[333469187,1722163854969,-500.0,0.0001452,2]
[333469188,1722163854979,-500.0,0.0001452,2]
[333469189,1722163854988,-500.0,0.0001452,2]
[333469190,1722163854998,-500.0,0.0001452,2]
[333469191,1722163855008,-500.0,0.0001452,2]
[333469192,1722163855019,-500.0,0.0001452,2]
[333469193,1722163855029,-500.0,0.0001452,2]
[333469194,1722163855039,-500.0,0.0001452,2]
[333469195,1722163855049,-620.74,0.0001452,2]
[333469196,1722163855060,-505.71279425,0.0001452,2]
[333469197,1722163855071,-500.0,0.0001452,2]
[333469198,1722163855080,-500.0,0.0001452,2]
[333469199,1722163855089,-532.63,0.0001452,2]
[333469200,1722163855099,-500.0,0.0001452,2]
[333469201,1722163855109,-500.0,0.0001452,2]
[333469202,1722163855119,-500.0,0.0001452,2]
[333469203,1722163855128,-500.0,0.0001452,2]
[333469204,1722163855138,-156.02107,0.0001452,2]
[333469205,1722163855148,-156.02107,0.0001452,2]
[333469206,1722163855158,-500.0,0.0001452,2]
[333469207,1722163855168,-500.0,0.0001452,2]
[333469208,1722163855178,-500.0,0.0001452,2]
[333469209,1722163855188,-1021.45,0.0001452,2]
[333469210,1722163855201,-1128.37,0.0001452,2]
[333469211,1722163855211,-500.0,0.0001452,2]
[333469212,1722163855221,-3552.09,0.0001452,2]
[333469213,1722163855231,-500.0,0.0001452,2]
[333469214,1722163855243,-1548.66,0.0001452,2]
[333469215,1722163855254,-500.0,0.0001452,2]
[333469216,1722163855263,-500.0,0.0001452,2]
[333469217,1722163855274,-789.63,0.0001452,2]
[333469218,1722163855284,-500.0,0.0001452,2]
[333469219,1722163855294,-785.88,0.0001452,2]
[333469220,1722163855304,-500.0,0.0001452,2]
[333469221,1722163855315,-500.0,0.0001452,2]
[333469222,1722163855326,-500.0,0.0001452,2]
[333469223,1722163855337,-500.0,0.0001452,2]
[333469224,1722163855347,-500.0,0.0001452,2]
[333469225,1722163855359,-593.47129026,0.0001452,2]
[333469226,1722163855369,-500.0,0.0001452,2]
[333469227,1722163855378,-500.0,0.0001452,2]
[333469228,1722163855388,-500.0,0.0001452,2]
[333469229,1722163855398,-651.25,0.0001452,2]
[333469230,1722163855408,-5505.58,0.0001452,2]
[333469231,1722163855417,-500.0,0.0001452,2]
[333469232,1722163855427,-500.0,0.0001452,2]
[333469233,1722163855437,-1752.77,0.0001452,2]
[333469234,1722163855446,-2455.15,0.0001452,2]
[333469235,1722163855456,-500.0,0.0001452,2]
[333469236,1722163855466,-500.0,0.0001452,2]
[333469237,1722163855475,-1313.07,0.0001452,2]
[333469238,1722163855486,-969.2,0.0001452,2]
[333469239,1722163855495,-611.62,0.0001452,2]
[333469240,1722163855505,-500.0,0.0001452,2]
[333469241,1722163855514,-812.78,0.0001452,2]
[333469242,1722163855524,-500.0,0.0001452,2]
[333469243,1722163855534,-500.0,0.0001452,2]
[333469244,1722163855544,-879.43,0.0001452,2]
[333469245,1722163855553,-500.0,0.0001452,2]
[333469246,1722163855563,-500.0,0.0001452,2]
[333469247,1722163855572,-500.0,0.0001452,2]
[333469248,1722163855582,-500.0,0.0001452,2]
[333469249,1722163855592,-717.17,0.0001452,2]
[333469250,1722163855601,-500.0,0.0001452,2]
[333469251,1722163855611,-732.74,0.0001452,2]
[333469252,1722163855620,-500.0,0.0001452,2]
[333469253,1722163855629,-500.0,0.0001452,2]
[333469254,1722163855639,-669.98,0.0001452,2]
[333469255,1722163855649,-500.0,0.0001452,2]
[333469256,1722163855658,-514.66365646,0.0001452,2]
[333469257,1722163855669,-500.0,0.0001452,2]
[333469258,1722163855679,-3040.68,0.0001452,2]
[333469259,1722163855688,-500.0,0.0001452,2]
[333469260,1722163855774,-5566.36,0.0001452,2]
[333469261,1722163855784,-788.86,0.0001452,2]
[333469262,1722163855794,-500.0,0.0001452,2]
[333469263,1722163855804,-500.0,0.0001452,2]
[333469264,1722163855814,-743.54,0.0001452,2]
[333469265,1722163855825,-500.0,0.0001452,2]
[333469266,1722163855837,-1625.56,0.0001452,2]
[333469267,1722163855849,-500.0,0.0001452,2]
[333469268,1722163855861,-847.68,0.0001452,2]
[333469269,1722163855872,-811.85,0.0001452,2]
[333469270,1722163855883,-500.0,0.0001452,2]
[333469271,1722163855894,-500.0,0.0001452,2]
[333469272,1722163855905,-589.46,0.0001452,2]
[333469273,1722163855916,-500.0,0.0001452,2]
[333469274,1722163855926,-500.0,0.0001452,2]
[333469275,1722163855936,-869.97,0.0001452,2]
[333469276,1722163855946,-687.37,0.0001452,2]
[333469277,1722163855957,-500.0,0.0001452,2]
[333469278,1722163855967,-500.0,0.0001452,2]
[333469279,1722163855979,-500.0,0.0001452,2]
[333469280,1722163855991,-731.31,0.0001452,2]
[333469281,1722163856002,-698.33,0.0001452,2]
[333469282,1722163856012,-500.0,0.0001452,2]
[333469283,1722163856021,-500.0,0.0001452,2]
[333469284,1722163856031,-500.0,0.0001452,2]
[333469285,1722163856040,-500.0,0.0001452,2]
[333469286,1722163856051,-1234.74,0.0001452,2]
[333469287,1722163856060,-725.94,0.0001452,2]
[333469288,1722163856069,-500.0,0.0001452,2]
[333469289,1722163856080,-790.53,0.0001452,2]
[333469290,1722163856089,-2136.11,0.0001452,2]
[333469291,1722163856099,-2057.81,0.0001452,2]
[333469292,1722163856109,-500.0,0.0001452,2]
[333469293,1722163856118,-896.38,0.0001452,2]
[333469294,1722163856128,-922.71435105,0.00014543,2]
[333469295,1722163856137,-526.94940313,0.00014545,2]
[333469296,1722163856147,-267.99213488,0.00014545,2]
[333469297,1722163856158,-815.82252143,0.0001469,2]
[333469298,1722163856167,-1091.03770757,0.0001469,2]
[333469299,1722163856177,-994.52512511,0.0001469,2]
[333469300,1722163856187,-154.72314853,0.0001469,2]
[333469301,1722163856200,-362.46476478,0.0001469,2]
[333469302,1722163856210,-500.0,0.00014794,2]
[333469303,1722163856219,-500.0,0.00014794,2]
[333469304,1722163856228,-500.0,0.00014794,2]
[333469305,1722163856239,-500.0,0.00014794,2]
[333469306,1722163856249,-463.80385673,0.00014794,2]
[333469307,1722163856260,-500.0,0.00014794,2]
[333469308,1722163856269,-500.0,0.00014794,2]
[333469309,1722163856280,-500.0,0.00014794,2]
[333469310,1722163856290,-500.0,0.00014794,2]
[333469311,1722163856299,-500.0,0.00014794,2]
[333469312,1722163856308,-500.0,0.00014794,2]
[333469313,1722163856317,-500.0,0.00014794,2]
[333469314,1722163856326,-500.0,0.00014794,2]
[333469315,1722163856335,-500.0,0.00014794,2]
[333469316,1722163856344,-500.0,0.00014794,2]
[333469317,1722163856354,-500.0,0.00014794,2]
[333469318,1722163856363,-507.00078858,0.00014794,2]
[333469319,1722163856373,-500.0,0.00014794,2]
[333469320,1722163856382,-500.0,0.00014794,2]
[333469321,1722163856390,-500.0,0.00014794,2]
[333469322,1722163856402,-500.0,0.00014794,2]
[333469323,1722163856411,-500.0,0.00014794,2]
[333469324,1722163856420,-600.56,0.00014794,2]
[333469325,1722163856431,-500.0,0.00014794,2]
[333469326,1722163856442,-500.0,0.00014794,2]
[333469327,1722163856451,-500.0,0.00014794,2]
[333469328,1722163856461,-500.0,0.00014794,2]
[333469329,1722163856470,-151.0,0.00014794,2]
[333469330,1722163856482,-151.0,0.00014794,2]
[333469331,1722163856493,-233.681856,0.00014794,2]
[333469332,1722163856503,-163.98947114,0.00014794,2]
[333469333,1722163856514,-500.0,0.00014794,2]
[333469334,1722163856526,-611.93,0.00014794,2]
[333469335,1722163856538,-500.0,0.00014794,2]
[333469336,1722163856551,-500.0,0.00014794,2]
[333469337,1722163856561,-500.0,0.00014794,2]
[333469338,1722163856570,-500.0,0.00014794,2]
[333469339,1722163856579,-500.0,0.00014794,2]
[333469340,1722163856589,-500.0,0.00014794,2]
[333469341,1722163856598,-547.91,0.00014794,2]
[333469342,1722163856607,-500.0,0.00014794,2]
[333469343,1722163856617,-252.418494,0.00014794,2]
[333469344,1722163856626,-252.418494,0.00014794,2]
[333469345,1722163856635,-500.0,0.00014794,2]
[333469346,1722163856645,-753.51,0.00014794,2]
[333469347,1722163856655,-500.0,0.00014794,2]
[333469348,1722163856664,-500.0,0.00014794,2]
[333469349,1722163856674,-500.0,0.00014794,2]
[333469350,1722163856685,-500.0,0.00014794,2]
[333469351,1722163856695,-500.0,0.00014794,2]
[333469352,1722163856704,-500.0,0.00014794,2]
[333469353,1722163856713,-500.0,0.00014794,2]
[333469354,1722163856723,-500.0,0.00014794,2]
[333469355,1722163856732,-620.74,0.00014794,2]
[333469356,1722163856742,-500.0,0.00014794,2]
[333469357,1722163856751,-500.0,0.00014794,2]
[333469358,1722163856761,-500.0,0.00014794,2]
[333469359,1722163856771,-532.63,0.00014794,2]
[333469360,1722163856781,-500.0,0.00014794,2]
[333469361,1722163856791,-500.0,0.00014794,2]
[333469362,1722163856801,-500.0,0.00014794,2]
[333469363,1722163856812,-156.02107,0.00014794,2]
[333469364,1722163856823,-156.02107,0.00014794,2]
[333469365,1722163856833,-500.0,0.00014794,2]
[333469366,1722163856842,-514.90301431,0.00014794,2]
[333469367,1722163856852,-500.0,0.00014794,2]
[333469368,1722163856862,-1021.45,0.00014794,2]
[333469369,1722163856872,-1128.37,0.00014794,2]
[333469370,1722163856882,-307.57622943,0.00014794,2]
[333469371,1722163856891,-3552.09,0.00014794,2]
[333469372,1722163856901,-500.0,0.00014794,2]
[333469373,1722163856911,-1548.66,0.00014794,2]
[333469374,1722163856921,-500.0,0.00014794,2]
[333469375,1722163856930,-500.0,0.00014794,2]
[333469376,1722163856940,-789.63,0.00014794,2]
[333469377,1722163856950,-500.0,0.00014794,2]
[333469378,1722163856959,-785.88,0.00014794,2]
[333469379,1722163856971,-500.0,0.00014794,2]
[333469380,1722163856983,-500.0,0.00014794,2]
[333469381,1722163856993,-500.0,0.00014794,2]
[333469382,1722163857006,-500.0,0.00014794,2]
[333469383,1722163857018,-500.0,0.00014794,2]
[333469384,1722163857027,-500.0,0.00014794,2]
[333469385,1722163857037,-500.0,0.00014794,2]
[333469386,1722163857046,-651.25,0.00014794,2]
[333469387,1722163857057,-5505.58,0.00014794,2]
[333469388,1722163857068,-500.0,0.00014794,2]
[333469389,1722163857079,-500.0,0.00014794,2]
[333469390,1722163857090,-1752.77,0.00014794,2]
[333469391,1722163857100,-2455.15,0.00014794,2]
[333469392,1722163857113,-500.0,0.00014794,2]
[333469393,1722163857123,-500.0,0.00014794,2]
[333469394,1722163857134,-1313.07,0.00014794,2]
[333469395,1722163857146,-969.2,0.00014794,2]
[333469396,1722163857156,-611.62,0.00014794,2]
[333469397,1722163857166,-500.0,0.00014794,2]
[333469398,1722163857175,-812.78,0.00014794,2]
[333469399,1722163857186,-500.0,0.00014794,2]
[333469400,1722163857200,-500.0,0.00014794,2]
[333469401,1722163857210,-879.43,0.00014794,2]
[333469402,1722163857220,-500.0,0.00014794,2]
[333469403,1722163857230,-500.0,0.00014794,2]
[333469404,1722163857242,-500.0,0.00014794,2]
[333469405,1722163857252,-500.0,0.00014794,2]
[333469406,1722163857263,-717.17,0.00014794,2]
[333469407,1722163857273,-500.0,0.00014794,2]
[333469408,1722163857283,-732.74,0.00014794,2]
[333469409,1722163857295,-500.0,0.00014794,2]
[333469410,1722163857305,-500.0,0.00014794,2]
[333469411,1722163857315,-669.98,0.00014794,2]
[333469412,1722163857325,-500.0,0.00014794,2]
[333469413,1722163857335,-500.0,0.00014794,2]
[333469414,1722163857346,-3040.68,0.00014794,2]
[333469415,1722163857357,-500.0,0.00014794,2]
[333469416,1722163857368,-5566.36,0.00014794,2]
[333469417,1722163857378,-788.86,0.00014794,2]
[333469418,1722163857388,-500.0,0.00014794,2]
[333469419,1722163857398,-500.0,0.00014794,2]
[333469420,1722163857407,-743.54,0.00014794,2]
[333469421,1722163857417,-500.0,0.00014794,2]
[333469422,1722163857427,-1625.56,0.00014794,2]
[333469423,1722163857437,-561.74515541,0.00014794,2]
[333469424,1722163857446,-847.68,0.00014794,2]
[333469425,1722163857456,-811.85,0.00014794,2]
[333469426,1722163857465,-500.0,0.00014794,2]
[333469427,1722163857475,-500.0,0.00014794,2]
[333469428,1722163857485,-589.46,0.00014794,2]
[333469429,1722163857495,-292.86,0.00014794,2]
[333469430,1722163857504,-500.0,0.00014794,2]
[333469431,1722163857515,-869.97,0.00014794,2]
[333469432,1722163857524,-687.37,0.00014794,2]
[333469433,1722163857534,-500.0,0.00014794,2]
[333469434,1722163857543,-500.0,0.00014794,2]
[333469435,1722163857553,-500.0,0.00014794,2]
[333469436,1722163857563,-731.31,0.00014794,2]
[333469437,1722163857572,-698.33,0.00014794,2]
[333469438,1722163857582,-500.0,0.00014794,2]
[333469439,1722163857591,-500.0,0.00014794,2]
[333469440,1722163857667,-500.0,0.00014794,2]
[333469441,1722163857683,-500.0,0.00014794,2]
[333469442,1722163857693,-1234.74,0.00014794,2]
[333469443,1722163857702,-725.94,0.00014794,2]
[333469444,1722163857712,-500.0,0.00014794,2]
[333469445,1722163857722,-790.53,0.00014794,2]
[333469446,1722163857732,-2136.11,0.00014794,2]
[333469447,1722163857742,-2057.81,0.00014794,2]
[333469448,1722163857752,-500.0,0.00014794,2]
[333469449,1722163857762,-896.38,0.00014794,2]
[333469450,1722163857771,-151.04692758,0.00014833,2]
[333469451,1722163857781,-419.17350503,0.000149,2]
[333469452,1722163857791,-419.17350501,0.000149,2]
[333469453,1722163857801,-543.19818394,0.00014992,2]
[333469454,1722163857811,-543.19818394,0.00014992,2]
[333469455,1722163857821,-2845.83479683,0.00015,2]
[333469456,1722163857831,-1044.2992156,0.00015,2]
[333469457,1722163857842,-1108.12907843,0.00015,2]
[333469458,1722163857852,-951.25132742,0.00015,2]
[333469459,1722163857862,-22483.84678491,0.00015,7]
[333469460,1722163857872,-11537.85317836,0.00015,15]
[333469461,1722163857881,-252.418494,0.00015,2]
[333469462,1722163857891,-252.418502,0.00015,2]
[333469463,1722163857905,-156.02107,0.00015,2]
[333469464,1722163857916,-156.021074,0.00015,2]
[333469465,1722163857926,-620.00019075,0.00015043,2]
[333469466,1722163857935,-500.0,0.00015068,2]
[333469467,1722163857945,-500.0,0.00015068,2]
[333469468,1722163857955,-521.22490885,0.00015068,2]
[333469469,1722163857966,-500.0,0.00015068,2]
[333469470,1722163857975,-500.0,0.00015068,2]
[333469471,1722163857985,-500.0,0.00015068,2]
[333469472,1722163857994,-500.0,0.00015068,2]
[333469473,1722163858003,-507.2493886,0.00015068,2]
[333469474,1722163858013,-386.74373468,0.00015068,2]
[333469475,1722163858023,-500.0,0.00015068,2]
[333469476,1722163858034,-200.0859661,0.00015068,2]
[333469477,1722163858044,-532.9,0.00015068,2]
[333469478,1722163858054,-500.0,0.00015068,2]
[333469479,1722163858064,-194.41977405,0.00015068,2]
[333469480,1722163858075,-500.0,0.00015068,2]
[333469481,1722163858085,-500.0,0.00015068,2]
[333469482,1722163858095,-500.0,0.00015068,2]
[333469483,1722163858104,-508.20413449,0.00015068,2]
[333469484,1722163858113,-500.0,0.00015068,2]
[333469485,1722163858123,-600.56,0.00015068,2]
[333469486,1722163858133,-500.0,0.00015068,2]
[333469487,1722163858142,-500.0,0.00015068,2]
[333469488,1722163858151,-500.0,0.00015068,2]
[333469489,1722163858160,-500.0,0.00015068,2]
[333469490,1722163858170,-500.0,0.00015068,2]
[333469491,1722163858179,-611.93,0.00015068,2]
[333469492,1722163858190,-500.0,0.00015068,2]
[333469493,1722163858202,-632.81387596,0.00015068,2]
[333469494,1722163858212,-500.0,0.00015068,2]
[333469495,1722163858222,-500.0,0.00015068,2]
[333469496,1722163858232,-500.0,0.00015068,2]
[333469497,1722163858241,-547.91,0.00015068,2]
[333469498,1722163858250,-500.0,0.00015068,2]
[333469499,1722163858261,-500.0,0.00015068,2]
[333469500,1722163858270,-753.51,0.00015068,2]
[333469501,1722163858280,-500.0,0.00015068,2]
[333469502,1722163858290,-500.0,0.00015068,2]
[333469503,1722163858301,-500.0,0.00015068,2]
[333469504,1722163858312,-500.0,0.00015068,2]
[333469505,1722163858323,-500.0,0.00015068,2]
[333469506,1722163858333,-500.0,0.00015068,2]
[333469507,1722163858344,-500.0,0.00015068,2]
[333469508,1722163858354,-500.0,0.00015068,2]
[333469509,1722163858363,-620.74,0.00015068,2]
[333469510,1722163858373,-500.0,0.00015068,2]
[333469511,1722163858383,-500.0,0.00015068,2]
[333469512,1722163858392,-503.45942072,0.00015068,2]
[333469513,1722163858402,-532.63,0.00015068,2]
[333469514,1722163858412,-500.0,0.00015068,2]
[333469515,1722163858422,-500.0,0.00015068,2]
[333469516,1722163858433,-500.0,0.00015068,2]
[333469517,1722163858446,-504.43582993,0.00015068,2]
[333469518,1722163858457,-500.0,0.00015068,2]
[333469519,1722163858467,-1021.45,0.00015068,2]
[333469520,1722163858477,-1128.37,0.00015068,2]
[333469521,1722163858487,-3552.09,0.00015068,2]
[333469522,1722163858497,-500.0,0.00015068,2]
[333469523,1722163858507,-1548.66,0.00015068,2]
[333469524,1722163858516,-500.0,0.00015068,2]
[333469525,1722163858534,-500.0,0.00015068,2]
[333469526,1722163858551,-789.63,0.00015068,2]
[333469527,1722163858564,-500.0,0.00015068,2]
[333469528,1722163858579,-785.88,0.00015068,2]
[333469529,1722163858593,-500.0,0.00015068,2]
[333469530,1722163858608,-500.0,0.00015068,2]
[333469531,1722163858623,-500.0,0.00015068,2]
[333469532,1722163858638,-500.0,0.00015068,2]
[333469533,1722163858654,-500.0,0.00015068,2]
[333469534,1722163858670,-500.0,0.00015068,2]
[333469535,1722163858684,-500.0,0.00015068,2]
[333469536,1722163858699,-651.25,0.00015068,2]
[333469537,1722163858712,-5505.58,0.00015068,2]
[333469538,1722163858725,-500.0,0.00015068,2]
[333469539,1722163858738,-500.0,0.00015068,2]
[333469540,1722163858752,-1752.77,0.00015068,2]
[333469541,1722163858766,-2455.15,0.00015068,2]
[333469542,1722163858780,-500.0,0.00015068,2]
[333469543,1722163858796,-500.0,0.00015068,2]
[333469544,1722163858811,-1313.07,0.00015068,2]
[333469545,1722163858825,-969.2,0.00015068,2]
[333469546,1722163858835,-611.62,0.00015068,2]
[333469547,1722163858847,-500.0,0.00015068,2]
[333469548,1722163858860,-812.78,0.00015068,2]
[333469549,1722163858875,-500.0,0.00015068,2]
[333469550,1722163858887,-500.0,0.00015068,2]
[333469551,1722163858903,-879.43,0.00015068,2]
[333469552,1722163858915,-500.0,0.00015068,2]
[333469553,1722163858928,-500.0,0.00015068,2]
[333469554,1722163858940,-500.0,0.00015068,2]
[333469555,1722163858951,-717.17,0.00015068,2]
[333469556,1722163858963,-500.0,0.00015068,2]
[333469557,1722163858976,-500.0,0.00015068,2]
[333469558,1722163858987,-625.34405439,0.00015068,2]
[333469559,1722163858999,-732.74,0.00015068,2]
[333469560,1722163859012,-500.0,0.00015068,2]
[333469561,1722163859024,-669.98,0.00015068,2]
[333469562,1722163859036,-500.0,0.00015068,2]
[333469563,1722163859048,-500.0,0.00015068,2]
[333469564,1722163859059,-3040.68,0.00015068,2]
[333469565,1722163859071,-5566.36,0.00015068,2]
[333469566,1722163859083,-788.86,0.00015068,2]
[333469567,1722163859096,-500.0,0.00015068,2]
[333469568,1722163859109,-500.0,0.00015068,2]
[333469569,1722163859122,-743.54,0.00015068,2]
[333469570,1722163859134,-500.0,0.00015068,2]
[333469571,1722163859147,-1625.56,0.00015068,2]
[333469572,1722163859160,-847.68,0.00015068,2]
[333469573,1722163859172,-811.85,0.00015068,2]
[333469574,1722163859184,-500.0,0.00015068,2]
[333469575,1722163859201,-500.0,0.00015068,2]
[333469576,1722163859214,-589.46,0.00015068,2]
[333469577,1722163859227,-500.0,0.00015068,2]
[333469578,1722163859241,-869.97,0.00015068,2]
[333469579,1722163859254,-687.37,0.00015068,2]
[333469580,1722163859267,-500.0,0.00015068,2]
[333469581,1722163859281,-500.0,0.00015068,2]
[333469582,1722163859294,-500.0,0.00015068,2]
[333469583,1722163859306,-731.31,0.00015068,2]
[333469584,1722163859319,-698.33,0.00015068,2]
[333469585,1722163859333,-500.0,0.00015068,2]
[333469586,1722163859345,-500.0,0.00015068,2]
[333469587,1722163859359,-500.0,0.00015068,2]
[333469588,1722163859372,-500.0,0.00015068,2]
[333469589,1722163859384,-1234.74,0.00015068,2]
[333469590,1722163859396,-725.94,0.00015068,2]
[333469591,1722163859408,-500.0,0.00015068,2]
[333469592,1722163859420,-790.53,0.00015068,2]
[333469593,1722163859432,-2136.11,0.00015068,2]
[333469594,1722163859444,-2057.81,0.00015068,2]
[333469595,1722163859456,-176.895806,0.00015129,2]
[333469596,1722163859468,-158.891676,0.00015129,2]
[333469597,1722163859480,-157.267474,0.00015129,2]
[333469598,1722163859492,-167.47796,0.00015129,2]
[333469599,1722163859505,-181.477012,0.00015129,2]
[333469600,1722163859517,-169.857579,0.00015129,2]
[333469601,1722163859529,-185.907397,0.00015129,2]
[333469602,1722163859540,-157.491848,0.00015129,2]
[333469603,1722163859552,-157.086836,0.00015129,2]
[333469604,1722163859564,-168.973902,0.00015129,2]
[333469605,1722163859578,-273.32654,0.00015129,2]
[333469606,1722163859682,-157.370027,0.00015129,2]
[333469607,1722163859716,-175.448759,0.00015129,2]
[333469608,1722163859725,-159.663448,0.00015129,2]
[333469609,1722163859734,-226.809146,0.00015176,2]
[333469610,1722163859744,-184.650394,0.00015176,2]
[333469611,1722163859753,-500.0,0.00015342,2]
[333469612,1722163859764,-500.0,0.00015342,2]
[333469613,1722163859775,-500.0,0.00015342,2]
[333469614,1722163859785,-500.0,0.00015342,2]
[333469615,1722163859795,-500.0,0.00015342,2]
[333469616,1722163859804,-500.0,0.00015342,2]
[333469617,1722163859813,-500.0,0.00015342,2]
[333469618,1722163859822,-500.0,0.00015342,2]
[333469619,1722163859830,-500.0,0.00015342,2]
[333469620,1722163859840,-500.0,0.00015342,2]
[333469621,1722163859849,-500.0,0.00015342,2]
[333469622,1722163859859,-600.56,0.00015342,2]
[333469623,1722163859867,-500.0,0.00015342,2]
[333469624,1722163859877,-500.0,0.00015342,2]
[333469625,1722163859886,-359.01545736,0.00015342,2]
[333469626,1722163859896,-500.0,0.00015342,2]
[333469627,1722163859905,-500.0,0.00015342,2]
[333469628,1722163859914,-611.93,0.00015342,2]
[333469629,1722163859923,-500.0,0.00015342,2]
[333469630,1722163859935,-500.0,0.00015342,2]
[333469631,1722163859945,-500.0,0.00015342,2]
[333469632,1722163859954,-500.0,0.00015342,2]
[333469633,1722163859963,-547.91,0.00015342,2]
[333469634,1722163859973,-500.0,0.00015342,2]
[333469635,1722163859982,-500.0,0.00015342,2]
[333469636,1722163859991,-753.51,0.00015342,2]
[333469637,1722163860001,-508.21497187,0.00015342,2]
[333469638,1722163860010,-462.72669245,0.00015342,2]
[333469639,1722163860020,-500.0,0.00015342,2]
[333469640,1722163860030,-500.0,0.00015342,2]
[333469641,1722163860039,-500.0,0.00015342,2]
[333469642,1722163860049,-500.0,0.00015342,2]
[333469643,1722163860058,-500.0,0.00015342,2]
[333469644,1722163860068,-515.37747525,0.00015342,2]
[333469645,1722163860077,-620.74,0.00015342,2]
[333469646,1722163860086,-500.0,0.00015342,2]
[333469647,1722163860095,-500.0,0.00015342,2]
[333469648,1722163860105,-532.63,0.00015342,2]
[333469649,1722163860114,-500.0,0.00015342,2]
[333469650,1722163860123,-500.0,0.00015342,2]
[333469651,1722163860132,-500.0,0.00015342,2]
[333469652,1722163860142,-500.0,0.00015342,2]
[333469653,1722163860151,-1021.45,0.00015342,2]
[333469654,1722163860161,-1128.37,0.00015342,2]
[333469655,1722163860170,-3552.09,0.00015342,2]
[333469656,1722163860180,-500.0,0.00015342,2]
[333469657,1722163860191,-1548.66,0.00015342,2]
[333469658,1722163860202,-500.0,0.00015342,2]
[333469659,1722163860211,-500.0,0.00015342,2]
[333469660,1722163860220,-789.63,0.00015342,2]
[333469661,1722163860229,-500.0,0.00015342,2]
[333469662,1722163860238,-785.88,0.00015342,2]
[333469663,1722163860248,-352.77842015,0.00015342,2]
[333469664,1722163860258,-500.0,0.00015342,2]
[333469665,1722163860272,-500.0,0.00015342,2]
[333469666,1722163860282,-500.0,0.00015342,2]
[333469667,1722163860291,-500.0,0.00015342,2]
[333469668,1722163860301,-500.0,0.00015342,2]
[333469669,1722163860310,-500.0,0.00015342,2]
[333469670,1722163860319,-651.25,0.00015342,2]
[333469671,1722163860329,-5505.58,0.00015342,2]
[333469672,1722163860339,-500.0,0.00015342,2]
[333469673,1722163860348,-500.0,0.00015342,2]
[333469674,1722163860358,-1752.77,0.00015342,2]
[333469675,1722163860368,-2455.15,0.00015342,2]
[333469676,1722163860378,-500.0,0.00015342,2]
[333469677,1722163860387,-500.0,0.00015342,2]
[333469678,1722163860397,-1313.07,0.00015342,2]
[333469679,1722163860407,-969.2,0.00015342,2]
[333469680,1722163860416,-611.62,0.00015342,2]
[333469681,1722163860426,-500.0,0.00015342,2]
[333469682,1722163860435,-812.78,0.00015342,2]
[333469683,1722163860444,-500.0,0.00015342,2]
[333469684,1722163860453,-517.00352109,0.00015342,2]
[333469685,1722163860463,-879.43,0.00015342,2]
[333469686,1722163860473,-255.91962371,0.00015342,2]